lending/lending_fUSD_20240507
["ID","MTS","AMOUNT","RATE_DAILY","PERIOD"]
[326572538,1715113863900,-2072.77,0.00020547,2]
[326572539,1715113863911,-607.52,0.00020547,2]
[326572540,1715113863920,-500.0,0.00020547,2]
[326572541,1715113863930,-500.0,0.00020547,2]
[326572542,1715113863940,-649.43,0.00020547,2]
[326572543,1715113863950,-151.0,0.00020547,2]
[326572544,1715113863960,-752.78,0.00020547,2]
[326572545,1715113863970,-902.24,0.00020547,2]
[326572546,1715113863980,-151.0,0.00020547,2]
[326572547,1715113863990,-1048.33,0.00020547,2]
[326572548,1715113864000,-235.35940089,0.00020547,2]
[326572549,1715113864292,-264.64059911,0.00020547,2]
[326572550,1715113864302,-885.17,0.00020547,2]
[326572551,1715113864312,-873.43,0.00020547,2]
[326572552,1715113864322,-949.99,0.00020547,2]
[326572553,1715113864331,-6949.33,0.00020547,2]
[326572554,1715113864341,-500.0,0.00020547,2]
[326572555,1715113864352,-1045.07,0.00020547,2]
[326572556,1715113864362,-1406.44,0.00020547,2]
[326572557,1715113864372,-500.0,0.00020547,2]
[326572558,1715113864381,-1377.48,0.00020547,2]
[326572559,1715113864391,-500.0,0.00020547,2]
[326572560,1715113864400,-500.0,0.00020547,2]
[326572561,1715113864410,-706.85,0.00020547,2]
[326572562,1715113864420,-988.15,0.00020547,2]
[326572563,1715113864430,-602.53,0.00020547,2]
[326572564,1715113864440,-500.0,0.00020547,2]
[326572565,1715113864450,-500.0,0.00020547,2]
[326572566,1715113864459,-702.58,0.00020547,2]
[326572567,1715113864469,-1129.59,0.00020547,2]
[326572568,1715113864478,-2577.91,0.00020547,2]
[326572569,1715113864488,-801.08,0.00020547,2]
[326572570,1715113864497,-2252.22,0.00020547,2]
[326572571,1715113864509,-500.0,0.00020547,2]
[326572572,1715113864519,-500.0,0.00020547,2]
[326572573,1715113864528,-691.69,0.00020547,2]
[326572574,1715113864539,-500.0,0.00020547,2]
[326572575,1715113864550,-643.49,0.00020547,2]
[326572576,1715113864560,-1003.94,0.00020547,2]
[326572577,1715113864570,-500.0,0.00020547,2]
[326572578,1715113864580,-500.0,0.00020547,2]
[326572579,1715113864591,-500.0,0.00020547,2]
[326572580,1715113864600,-500.0,0.00020547,2]
[326572581,1715113864611,-2295.13,0.00020547,2]
[326572582,1715113864620,-500.0,0.00020547,2]
[326572583,1715113864630,-1288.82,0.00020547,2]
[326572584,1715113864639,-1322.38,0.00020547,2]
[326572585,1715113864649,-500.0,0.00020547,2]
[326572586,1715113864659,-557.07,0.00020547,2]
[326572587,1715113864668,-500.0,0.00020547,2]
[326572588,1715113864678,-500.0,0.00020547,2]
[326572589,1715113864688,-651.03,0.00020547,2]
[326572590,1715113864697,-581.0,0.00020567,2]
[326572591,1715113864708,-466.0,0.000206,2]
[326572592,1715113864718,-2000.0,0.00020606,2]
[326572593,1715113864728,-200.0,0.00020606,2]
[326572594,1715113864738,-2000.0,0.00020606,2]
[326572595,1715113864748,-200.0,0.00020606,2]
[326572596,1715113864757,-3145.56436845,0.00020686,2]
[326572597,1715113864769,-179.8,0.00020747,5]
[326572598,1715113864778,-2000.0,0.00020812,2]
[326572599,1715113864788,-200.0,0.00020812,2]
[326572600,1715113864798,-2000.0,0.00020812,2]
[326572601,1715113864808,-200.0,0.00020812,2]
[326572602,1715113864818,-5737.74953061,0.00020815,2]
[326572603,1715113864828,-549.0,0.0002082,2]
[326572604,1715113864838,-165.83164483,0.00020821,2]
[326572605,1715113864847,-500.0,0.00020821,2]
[326572606,1715113864857,-263.5756044,0.00020821,2]
[326572607,1715113864867,-500.0,0.00020821,2]
[326572608,1715113864877,-500.0,0.00020821,2]
[326572609,1715113864886,-500.0,0.00020821,2]
[326572610,1715113864896,-500.0,0.00020821,2]
[326572611,1715113864906,-500.0,0.00020821,2]
[326572612,1715113864916,-500.0,0.00020821,2]
[326572613,1715113864925,-500.0,0.00020821,2]
[326572614,1715113864935,-500.0,0.00020821,2]
[326572615,1715113864945,-500.0,0.00020821,2]
[326572616,1715113864955,-500.0,0.00020821,2]
[326572617,1715113864965,-500.0,0.00020821,2]
[326572618,1715113864975,-500.0,0.00020821,2]
[326572619,1715113864984,-500.0,0.00020821,2]
[326572620,1715113864994,-500.0,0.00020821,2]
[326572621,1715113865004,-555.62,0.00020821,2]
[326572622,1715113865015,-500.0,0.00020821,2]
[326572623,1715113865024,-500.0,0.00020821,2]
[326572624,1715113865035,-438.97130595,0.00020821,2]
[326572625,1715113865047,-500.0,0.00020821,2]
[326572626,1715113865058,-603.5,0.00020821,2]
[326572627,1715113865068,-500.0,0.00020821,2]
[326572628,1715113865080,-500.0,0.00020821,2]
[326572629,1715113865089,-500.0,0.00020821,2]
[326572630,1715113865099,-500.0,0.00020821,2]
[326572631,1715113865109,-500.0,0.00020821,2]
[326572632,1715113865121,-543.19497234,0.00020821,2]
[326572633,1715113865130,-500.0,0.00020821,2]
[326572634,1715113865141,-500.0,0.00020821,2]
[326572635,1715113865151,-1076.55,0.00020821,2]
[326572636,1715113865161,-500.0,0.00020821,2]
[326572637,1715113865171,-500.0,0.00020821,2]
[326572638,1715113865181,-500.0,0.00020821,2]
[326572639,1715113865191,-500.0,0.00020821,2]
[326572640,1715113865200,-500.0,0.00020821,2]
[326572641,1715113865210,-500.0,0.00020821,2]
[326572642,1715113865220,-500.0,0.00020821,2]
[326572643,1715113865229,-500.0,0.00020821,2]
[326572644,1715113865239,-540.29,0.00020821,2]
[326572645,1715113865249,-500.0,0.00020821,2]
[326572646,1715113865260,-327.26454833,0.00020821,2]
[326572647,1715113865274,-172.73545167,0.00020821,2]
[326572648,1715113865285,-500.0,0.00020821,2]
[326572649,1715113865295,-500.0,0.00020821,2]
[326572650,1715113865481,-500.0,0.00020821,2]
[326572651,1715113865490,-500.0,0.00020821,2]
[326572652,1715113865500,-500.0,0.00020821,2]
[326572653,1715113865510,-500.0,0.00020821,2]
[326572654,1715113865519,-500.0,0.00020821,2]
[326572655,1715113865529,-500.0,0.00020821,2]
[326572656,1715113865539,-500.0,0.00020821,2]
[326572657,1715113865548,-19.28140668,0.00020821,2]
[326572658,1715113865560,-489.34859332,0.00020821,2]
[326572659,1715113865570,-449.78505924,0.00020821,2]
[326572660,1715113865770,-646.28503229,0.00019178,2]
[326572661,1715113865782,-353.33450113,0.00019178,2]
[326572662,1715113865794,-6824.51046658,0.00019178,2]
[326572663,1715113865804,-500.0,0.00019178,2]
[326572664,1715113865815,-7824.13,0.00019452,2]
[326572665,1715113865824,-166.78278404,0.0001999,2]
[326572666,1715113865836,-190.92632934,0.00020821,2]
[326572667,1715113865845,-500.0,0.00020821,2]
[326572668,1715113865854,-500.0,0.00020821,2]
[326572669,1715113865864,-500.0,0.00020821,2]
[326572670,1715113865874,-500.0,0.00020821,2]
[326572671,1715113865884,-629.13,0.00020821,2]
[326572672,1715113865893,-500.0,0.00020821,2]
[326572673,1715113865902,-500.0,0.00020821,2]
[326572674,1715113865912,-500.0,0.00020821,2]
[326572675,1715113865922,-597.37,0.00020821,2]
[326572676,1715113865932,-268.51,0.00020821,2]
[326572677,1715113865942,-500.0,0.00020821,2]
[326572678,1715113865952,-500.0,0.00020821,2]
[326572679,1715113865962,-504.72,0.00020821,2]
[326572680,1715113865972,-500.0,0.00020821,2]
[326572681,1715113865982,-500.0,0.00020821,2]
[326572682,1715113865993,-500.0,0.00020821,2]
[326572683,1715113866003,-500.0,0.00020821,2]
[326572684,1715113866014,-500.0,0.00020821,2]
[326572685,1715113866023,-500.0,0.00020821,2]
[326572686,1715113866034,-500.0,0.00020821,2]
[326572687,1715113866048,-500.0,0.00020821,2]
[326572688,1715113866058,-518.3,0.00020821,2]
[326572689,1715113866068,-587.47,0.00020821,2]
[326572690,1715113866079,-500.0,0.00020821,2]
[326572691,1715113866088,-500.0,0.00020821,2]
[326572692,1715113866098,-696.01,0.00020821,2]
[326572693,1715113866108,-500.0,0.00020821,2]
[326572694,1715113866118,-500.0,0.00020821,2]
[326572695,1715113866127,-500.0,0.00020821,2]
[326572696,1715113866137,-387.6682316,0.00020821,2]
[326572697,1715113866146,-500.0,0.00020821,2]
[326572698,1715113866156,-500.0,0.00020821,2]
[326572699,1715113866166,-500.0,0.00020821,2]
[326572700,1715113866176,-500.0,0.00020821,2]
[326572701,1715113866186,-500.0,0.00020821,2]
[326572702,1715113866195,-500.0,0.00020821,2]
[326572703,1715113866205,-500.0,0.00020821,2]
[326572704,1715113866215,-500.0,0.00020821,2]
[326572705,1715113866224,-157.77976943,0.00020821,2]
[326572706,1715113866237,-342.22023057,0.00020821,2]
[326572707,1715113866246,-82.66285481,0.00020821,2]
[326572708,1715113866560,-500.0,0.00019178,2]
[326572709,1715113866570,-500.0,0.00019178,2]
[326572710,1715113866580,-196.89,0.00019452,2]
[326572711,1715113866589,-500.0,0.00019452,2]
[326572712,1715113866599,-3090.31130225,0.00019626,2]
[326572713,1715113866611,-2858.48697561,0.00019626,2]
[326572714,1715113866620,-7824.13,0.00019726,2]
[326572715,1715113866629,-500.0,0.00019726,2]
[326572716,1715113866639,-7824.13,0.0002,2]
[326572717,1715113866648,-7824.13,0.00020273,2]
[326572718,1715113866658,-7824.13,0.00020547,2]
[326572719,1715113866667,-444.32714519,0.00020821,2]
[326572720,1715113866676,-684.15,0.00020821,2]
[326572721,1715113866686,-500.0,0.00020821,2]
[326572722,1715113866695,-500.37,0.00020821,2]
[326572723,1715113866704,-500.0,0.00020821,2]
[326572724,1715113866713,-500.0,0.00020821,2]
[326572725,1715113866722,-500.0,0.00020821,2]
[326572726,1715113866731,-500.0,0.00020821,2]
[326572727,1715113866741,-599.49,0.00020821,2]
[326572728,1715113866751,-500.0,0.00020821,2]
[326572729,1715113866763,-582.5,0.00020821,2]
[326572730,1715113866772,-500.0,0.00020821,2]
[326572731,1715113866781,-500.0,0.00020821,2]
[326572732,1715113866790,-500.0,0.00020821,2]
[326572733,1715113866799,-500.0,0.00020821,2]
[326572734,1715113866807,-500.0,0.00020821,2]
[326572735,1715113866817,-500.0,0.00020821,2]
[326572736,1715113866826,-500.0,0.00020821,2]
[326572737,1715113866835,-500.0,0.00020821,2]
[326572738,1715113866845,-715.61,0.00020821,2]
[326572739,1715113866854,-500.0,0.00020821,2]
[326572740,1715113866863,-295.07082782,0.00020821,2]
[326572741,1715113866872,-500.0,0.00020821,2]
[326572742,1715113866882,-500.0,0.00020821,2]
[326572743,1715113866891,-500.0,0.00020821,2]
[326572744,1715113866900,-500.0,0.00020821,2]
[326572745,1715113866909,-500.0,0.00020821,2]
[326572746,1715113866918,-1741.3,0.00020821,2]
[326572747,1715113866928,-175.65471828,0.00020821,2]
[326572748,1715113867107,-500.0,0.00019178,2]
[326572749,1715113867117,-500.0,0.00019178,2]
[326572750,1715113867127,-388.78,0.0002,2]
[326572751,1715113867137,-37793.0,0.00020203,2]
[326572752,1715113867147,-359.56528172,0.00020821,2]
[326572753,1715113867156,-500.0,0.00020821,2]
[326572754,1715113867166,-940.62,0.00020821,2]
[326572755,1715113867176,-500.0,0.00020821,2]
[326572756,1715113867185,-539.68,0.00020821,2]
[326572757,1715113867195,-2788.2,0.00020821,2]
[326572758,1715113867204,-500.0,0.00020821,2]
[326572759,1715113867214,-1292.34,0.00020821,2]
[326572760,1715113867224,-645.46,0.00020821,2]
[326572761,1715113867234,-710.27,0.00020821,2]
[326572762,1715113867244,-500.0,0.00020821,2]
[326572763,1715113867253,-500.0,0.00020821,2]
[326572764,1715113867264,-749.26,0.00020821,2]
[326572765,1715113867273,-645.46583834,0.00020821,2]
[326572766,1715113867283,-2223.0,0.00020821,2]
[326572767,1715113867292,-500.0,0.00020821,2]
[326572768,1715113867302,-500.0,0.00020821,2]
[326572769,1715113867311,-500.0,0.00020821,2]
[326572770,1715113867320,-523.71579221,0.00020821,2]
[326572771,1715113867329,-151.0,0.00020821,2]
[326572772,1715113867339,-500.0,0.00020821,2]
[326572773,1715113867348,-500.0,0.00020821,2]
[326572774,1715113867357,-711.78,0.00020821,2]
[326572775,1715113867367,-500.0,0.00020821,2]
[326572776,1715113867377,-547.13,0.00020821,2]
[326572777,1715113867386,-680.12,0.00020821,2]
[326572778,1715113867396,-1577.76,0.00020821,2]
[326572779,1715113867407,-561.78,0.00020821,2]
[326572780,1715113867417,-581.76,0.00020821,2]
[326572781,1715113867427,-500.0,0.00020821,2]
[326572782,1715113867437,-500.0,0.00020821,2]
[326572783,1715113867447,-500.0,0.00020821,2]
[326572784,1715113867456,-500.0,0.00020821,2]
[326572785,1715113867465,-687.99,0.00020821,2]
[326572786,1715113867475,-4127.75,0.00020821,2]
[326572787,1715113867484,-516.49,0.00020821,2]
[326572788,1715113867494,-799.61,0.00020821,2]
[326572789,1715113867503,-1401.63,0.00020821,2]
[326572790,1715113867513,-186.02932258,0.00020821,2]
[326572791,1715113867523,-776.79,0.00020821,2]
[326572792,1715113867532,-1437.13,0.00020821,2]
[326572793,1715113867545,-701.01,0.00020821,2]
[326572794,1715113867554,-500.0,0.00020821,2]
[326572795,1715113867563,-508.02215954,0.00020821,2]
[326572796,1715113867573,-5537.35,0.00020821,2]
[326572797,1715113867583,-853.18,0.00020821,2]
[326572798,1715113867593,-500.0,0.00020821,2]
[326572799,1715113867602,-818.27,0.00020821,2]
[326572800,1715113867612,-558.94,0.00020821,2]
[326572801,1715113867621,-500.0,0.00020821,2]
[326572802,1715113867631,-1491.2,0.00020821,2]
[326572803,1715113867640,-500.0,0.00020821,2]
[326572804,1715113867649,-434.83539911,0.00020821,2]
[326572805,1715113867659,-727.39,0.00020821,2]
[326572806,1715113867668,-591.9,0.00020821,2]
[326572807,1715113867677,-500.0,0.00020821,2]
[326572808,1715113867686,-560.68,0.00020821,2]
[326572809,1715113867696,-669.61,0.00020821,2]
[326572810,1715113867706,-586.26128675,0.00020821,2]
[326572811,1715113867715,-1228.41,0.00020821,2]
[326572812,1715113867725,-500.0,0.00020821,2]
[326572813,1715113867734,-500.0,0.00020821,2]
[326572814,1715113867743,-624.03,0.00020821,2]
[326572815,1715113867753,-1070.76,0.00020821,2]
[326572816,1715113867763,-500.0,0.00020821,2]
[326572817,1715113867772,-500.0,0.00020821,2]
[326572818,1715113867782,-3412.33,0.00020821,2]
[326572819,1715113867792,-500.0,0.00020821,2]
[326572820,1715113867801,-500.0,0.00020821,2]
[326572821,1715113867810,-910.86,0.00020821,2]
[326572822,1715113867820,-500.0,0.00020821,2]
[326572823,1715113867829,-500.0,0.00020821,2]
[326572824,1715113867838,-500.0,0.00020821,2]
[326572825,1715113867848,-500.0,0.00020821,2]
[326572826,1715113867857,-500.0,0.00020821,2]
[326572827,1715113867867,-500.0,0.00020821,2]
[326572828,1715113867876,-500.0,0.00020821,2]
[326572829,1715113867886,-500.0,0.00020821,2]
[326572830,1715113867895,-576.45,0.00020821,2]
[326572831,1715113867904,-722.56,0.00020821,2]
[326572832,1715113867913,-1842.24,0.00020821,2]
[326572833,1715113867922,-500.0,0.00020821,2]
[326572834,1715113867931,-500.0,0.00020821,2]
[326572835,1715113867941,-1096.22,0.00020821,2]
[326572836,1715113867950,-611.88,0.00020821,2]
[326572837,1715113867960,-1409.68,0.00020821,2]
[326572838,1715113867969,-500.0,0.00020821,2]
[326572839,1715113867979,-500.0,0.00020821,2]
[326572840,1715113867988,-838.71,0.00020821,2]
[326572841,1715113867998,-1105.09,0.00020821,2]
[326572842,1715113868007,-500.0,0.00020821,2]
[326572843,1715113868019,-500.0,0.00020821,2]
[326572844,1715113868028,-500.0,0.00020821,2]
[326572845,1715113868040,-1971.37,0.00020821,2]
[326572846,1715113868050,-592.84,0.00020821,2]
[326572847,1715113868060,-500.0,0.00020821,2]
[326572848,1715113868069,-2089.89,0.00020821,2]
[326572849,1715113868079,-576.81,0.00020821,2]
[326572850,1715113868091,-10776.78,0.00020821,2]
[326572851,1715113868101,-686.2,0.00020821,2]
[326572852,1715113868111,-2275.2,0.00020821,2]
[326572853,1715113868122,-391.1816495,0.00020821,2]
[326572854,1715113868131,-600.53,0.00020821,2]
[326572855,1715113868140,-500.0,0.00020821,2]
[326572856,1715113868150,-1261.59,0.00020821,2]
[326572857,1715113868160,-5265.21,0.00020821,2]
[326572858,1715113868169,-1054.04,0.00020821,2]
[326572859,1715113868178,-582.84980157,0.00020821,2]
[326572860,1715113868187,-874.16,0.00020821,2]
[326572861,1715113868198,-855.49,0.00020821,2]
[326572862,1715113868208,-500.0,0.00020821,2]
[326572863,1715113868217,-856.23,0.00020821,2]
[326572864,1715113868227,-500.0,0.00020821,2]
[326572865,1715113868236,-821.53,0.00020821,2]
[326572866,1715113868246,-1392.01,0.00020821,2]
[326572867,1715113868255,-500.0,0.00020821,2]
[326572868,1715113868267,-505.28,0.00020821,2]
[326572869,1715113868277,-1149.21,0.00020821,2]
[326572870,1715113868287,-794.53,0.00020821,2]
[326572871,1715113868296,-1439.95,0.00020821,2]
[326572872,1715113868306,-500.0,0.00020821,2]
[326572873,1715113868315,-500.0,0.00020821,2]
[326572874,1715113868325,-500.0,0.00020821,2]
[326572875,1715113868334,-291.30579484,0.00020821,2]
[326572876,1715113868344,-1692.56,0.00020821,2]
[326572877,1715113868354,-500.0,0.00020821,2]
[326572878,1715113868365,-1022.22,0.00020821,2]
[326572879,1715113868374,-1646.75,0.00020821,2]
[326572880,1715113868383,-724.92,0.00020821,2]
[326572881,1715113868393,-500.0,0.00020821,2]
[326572882,1715113868403,-500.0,0.00020821,2]
[326572883,1715113868412,-500.0,0.00020821,2]
[326572884,1715113868422,-1269.99,0.00020821,2]
[326572885,1715113868432,-500.0,0.00020821,2]
[326572886,1715113868442,-500.0,0.00020821,2]
[326572887,1715113868452,-2072.77,0.00020821,2]
[326572888,1715113868462,-607.52,0.00020821,2]
[326572889,1715113868472,-500.0,0.00020821,2]
[326572890,1715113868482,-500.0,0.00020821,2]
[326572891,1715113868492,-649.43,0.00020821,2]
[326572892,1715113868503,-151.0,0.00020821,2]
[326572893,1715113868516,-752.78,0.00020821,2]
[326572894,1715113868526,-902.24,0.00020821,2]
[326572895,1715113868536,-159.354928,0.00020821,2]
[326572896,1715113868560,-1048.33,0.00020821,2]
[326572897,1715113868571,-500.0,0.00020821,2]
[326572898,1715113868581,-885.17,0.00020821,2]
[326572899,1715113868591,-873.43,0.00020821,2]
[326572900,1715113868601,-949.99,0.00020821,2]
[326572901,1715113868610,-6949.33,0.00020821,2]
[326572902,1715113868620,-500.0,0.00020821,2]
[326572903,1715113868629,-1045.07,0.00020821,2]
[326572904,1715113868638,-1406.44,0.00020821,2]
[326572905,1715113868648,-500.0,0.00020821,2]
[326572906,1715113868658,-1377.48,0.00020821,2]
[326572907,1715113868667,-500.0,0.00020821,2]
[326572908,1715113868676,-500.0,0.00020821,2]
[326572909,1715113868686,-706.85,0.00020821,2]
[326572910,1715113868696,-988.15,0.00020821,2]
[326572911,1715113868706,-602.53,0.00020821,2]
[326572912,1715113868716,-642.34651464,0.00020821,2]
[326572913,1715113868725,-500.0,0.00020821,2]
[326572914,1715113868735,-702.58,0.00020821,2]
[326572915,1715113868744,-1129.59,0.00020821,2]
[326572916,1715113868753,-2577.91,0.00020821,2]
[326572917,1715113868766,-801.08,0.00020821,2]
[326572918,1715113868775,-2252.22,0.00020821,2]
[326572919,1715113868785,-500.0,0.00020821,2]
[326572920,1715113868794,-500.0,0.00020821,2]
[326572921,1715113868803,-691.69,0.00020821,2]
[326572922,1715113868812,-500.0,0.00020821,2]
[326572923,1715113868821,-643.49,0.00020821,2]
[326572924,1715113868831,-1003.94,0.00020821,2]
[326572925,1715113868841,-500.0,0.00020821,2]
[326572926,1715113868851,-500.0,0.00020821,2]
[326572927,1715113868861,-500.0,0.00020821,2]
[326572928,1715113868870,-500.0,0.00020821,2]
[326572929,1715113868879,-2295.13,0.00020821,2]
[326572930,1715113868888,-500.0,0.00020821,2]
[326572931,1715113868897,-1288.82,0.00020821,2]
[326572932,1715113868906,-1322.38,0.00020821,2]
[326572933,1715113868915,-500.0,0.00020821,2]
[326572934,1715113868924,-557.07,0.00020821,2]
[326572935,1715113868933,-500.0,0.00020821,2]
[326572936,1715113868942,-500.0,0.00020821,2]
[326572937,1715113868951,-651.03,0.00020821,2]
[326572938,1715113868960,-7824.13,0.00020821,2]
[326572939,1715113868970,-304.2,0.00020822,2]
[326572940,1715113868979,-200.0,0.00020832,2]
[326572941,1715113868987,-1000.0,0.00020832,2]
[326572942,1715113868996,-500.0,0.00020832,2]
[326572943,1715113869006,-200.0,0.00020832,2]
[326572944,1715113869017,-159.17705713,0.00020846,2]
[326572945,1715113869027,-356.34350886,0.0002086,2]
[326572946,1715113869042,-154.6529785,0.00020873,2]
[326572947,1715113869051,-300.0,0.00020891,2]
[326572948,1715113869060,-2800.0,0.000209,7]
[326572949,1715113869070,-1180.18,0.000209,2]
[326572950,1715113869081,-152.85545384,0.00020974,2]
[326572951,1715113869090,-716.58965222,0.00021,2]
[326572952,1715113869100,-1387.746256,0.00021,2]
[326572953,1715113869110,-2263.184006,0.00021,2]
[326572954,1715113869120,-150.0,0.00021,2]
[326572955,1715113869130,-152.85545384,0.00021023,2]
[326572956,1715113869140,-300.0,0.00021029,2]
[326572957,1715113869149,-349.95,0.00021057,2]
[326572958,1715113869158,-300.0,0.00021072,2]
[326572959,1715113869337,-306.20287811,0.00021092,2]
[326572960,1715113869347,-2357.86048009,0.00021092,2]
[326572961,1715113869357,-1071.84695952,0.00021093,5]
[326572962,1715113869367,-549.0,0.00021094,2]
[326572963,1715113869376,-500.0,0.00021095,2]
[326572964,1715113869385,-408.87837046,0.00021095,2]
[326572965,1715113869395,-500.0,0.00021095,2]
[326572966,1715113869405,-500.0,0.00021095,2]
[326572967,1715113869414,-500.0,0.00021095,2]
[326572968,1715113869424,-500.0,0.00021095,2]
[326572969,1715113869433,-500.0,0.00021095,2]
[326572970,1715113869442,-500.0,0.00021095,2]
[326572971,1715113869451,-500.0,0.00021095,2]
[326572972,1715113869462,-500.0,0.00021095,2]
[326572973,1715113869472,-500.0,0.00021095,2]
[326572974,1715113869481,-500.0,0.00021095,2]
[326572975,1715113869491,-500.0,0.00021095,2]
[326572976,1715113869500,-500.0,0.00021095,2]
[326572977,1715113869509,-500.0,0.00021095,2]
[326572978,1715113869520,-555.62,0.00021095,2]
[326572979,1715113869530,-500.0,0.00021095,2]
[326572980,1715113869542,-500.0,0.00021095,2]
[326572981,1715113869552,-500.0,0.00021095,2]
[326572982,1715113869561,-500.0,0.00021095,2]
[326572983,1715113869571,-500.0,0.00021095,2]
[326572984,1715113869581,-500.0,0.00021095,2]
[326572985,1715113869591,-500.0,0.00021095,2]
[326572986,1715113869600,-500.0,0.00021095,2]
[326572987,1715113869610,-500.0,0.00021095,2]
[326572988,1715113869620,-500.0,0.00021095,2]
[326572989,1715113869629,-1076.55,0.00021095,2]
[326572990,1715113869638,-500.0,0.00021095,2]
[326572991,1715113869648,-500.0,0.00021095,2]
[326572992,1715113869657,-500.0,0.00021095,2]
[326572993,1715113869667,-500.0,0.00021095,2]
[326572994,1715113869676,-500.0,0.00021095,2]
[326572995,1715113869686,-500.0,0.00021095,2]
[326572996,1715113869696,-500.0,0.00021095,2]
[326572997,1715113869705,-500.0,0.00021095,2]
[326572998,1715113869714,-500.0,0.00021095,2]
[326572999,1715113869724,-500.0,0.00021095,2]
[326573000,1715113869733,-500.0,0.00021095,2]
[326573001,1715113869743,-500.0,0.00021095,2]
[326573002,1715113869752,-500.0,0.00021095,2]
[326573003,1715113869763,-587.30853671,0.00021095,2]
[326573004,1715113869772,-500.0,0.00021095,2]
[326573005,1715113869781,-210.26903321,0.00021095,2]
[326573006,1715113869790,-500.0,0.00021095,2]
[326573007,1715113869800,-508.63,0.00021095,2]
[326573008,1715113869810,-500.0,0.00021095,2]
[326573009,1715113869819,-500.0,0.00021095,2]
[326573010,1715113869828,-500.0,0.00021095,2]
[326573011,1715113869838,-500.0,0.00021095,2]
[326573012,1715113869847,-629.13,0.00021095,2]
[326573013,1715113869856,-500.0,0.00021095,2]
[326573014,1715113869865,-500.0,0.00021095,2]
[326573015,1715113869875,-500.0,0.00021095,2]
[326573016,1715113869884,-597.37,0.00021095,2]
[326573017,1715113869893,-268.51,0.00021095,2]
[326573018,1715113869903,-500.0,0.00021095,2]
[326573019,1715113869912,-500.0,0.00021095,2]
[326573020,1715113869922,-504.72,0.00021095,2]
[326573021,1715113869933,-500.0,0.00021095,2]
[326573022,1715113869942,-500.0,0.00021095,2]
[326573023,1715113869952,-500.0,0.00021095,2]
[326573024,1715113869961,-500.0,0.00021095,2]
[326573025,1715113869971,-323.98577704,0.00021095,2]
[326573026,1715113869980,-500.0,0.00021095,2]
[326573027,1715113869989,-500.0,0.00021095,2]
[326573028,1715113869999,-500.0,0.00021095,2]
[326573029,1715113870009,-518.3,0.00021095,2]
[326573030,1715113870019,-587.47,0.00021095,2]
[326573031,1715113870029,-500.0,0.00021095,2]
[326573032,1715113870042,-500.0,0.00021095,2]
[326573033,1715113870052,-696.01,0.00021095,2]
[326573034,1715113870062,-500.0,0.00021095,2]
[326573035,1715113870072,-500.0,0.00021095,2]
[326573036,1715113870082,-500.0,0.00021095,2]
[326573037,1715113870092,-563.74602589,0.00021095,2]